[Event "Titled Tuesday Blitz October 31 Early 2023"]
[White "Leyva Proenza, Richard"]
[Black "Rustemov, Alexander"]
[WhiteFideId "3500985"]
[BlackFideId "4119002"]
[WhiteElo "2607"]
[BlackElo "2905"]
[Result "1/2-1/2"]
[Round "2"]
[TimeControl "180+1"]
[Date "2023.10.31"]
[WhiteClock "0:00:06"]
[BlackClock "0:00:09"]
[Board "24"]

1. e4 {[%clk 0:02:58]}  e6 {[%clk 0:03:00]} 2. d4 {[%clk 0:02:57]}  d5 {[%clk 0:03:00]} 3. Nd2 {[%clk 0:02:57]}  dxe4 {[%clk 0:03:01]} 4. Nxe4 {[%clk 0:02:58]}  Bd7 {[%clk 0:03:01]} 5. c4 {[%clk 0:02:57]}  Bb4+ {[%clk 0:03:00]} 6. Nc3 {[%clk 0:02:54]}  c5 {[%clk 0:03:00]} 7. a3 {[%clk 0:02:50]}  Bxc3+ {[%clk 0:02:59]} 8. bxc3 {[%clk 0:02:51]}  Qa5 {[%clk 0:02:56]} 9. Bd2 {[%clk 0:02:49]}  Nf6 {[%clk 0:02:56]} 10. Bd3 {[%clk 0:02:48]}  Bc6 {[%clk 0:02:54]} 11. Nf3 {[%clk 0:02:47]}  Nbd7 {[%clk 0:02:53]} 12. Qe2 {[%clk 0:02:46]}  O-O {[%clk 0:02:51]} 13. Ra2 {[%clk 0:02:24]}  Qc7 {[%clk 0:02:35]} 14. O-O {[%clk 0:02:23]}  Rfe8 {[%clk 0:02:30]} 15. Re1 {[%clk 0:02:22]}  h6 {[%clk 0:02:27]} 16. h3 {[%clk 0:02:18]}  Rad8 {[%clk 0:02:26]} 17. Bc1 {[%clk 0:02:11]}  b6 {[%clk 0:02:21]} 18. Rd2 {[%clk 0:02:08]}  a6 {[%clk 0:02:02]} 19. Bc2 {[%clk 0:02:05]}  b5 {[%clk 0:01:59]} 20. cxb5 {[%clk 0:01:33]}  axb5 {[%clk 0:02:00]} 21. Ne5 {[%clk 0:01:28]}  cxd4 {[%clk 0:01:54]} 22. Nxc6 {[%clk 0:01:28]}  Qxc6 {[%clk 0:01:45]} 23. cxd4 {[%clk 0:01:28]}  Nb6 {[%clk 0:01:36]} 24. Bd3 {[%clk 0:00:55]}  Nc4 {[%clk 0:01:26]} 25. Rdd1 {[%clk 0:00:55]}  Ra8 {[%clk 0:01:22]} 26. Qa2 {[%clk 0:00:47]}  Red8 {[%clk 0:01:20]} 27. Re2 {[%clk 0:00:38]}  Nd5 {[%clk 0:01:18]} 28. Qb3 {[%clk 0:00:25]}  Qa6 {[%clk 0:01:13]} 29. Rc2 {[%clk 0:00:23]}  Qa4 {[%clk 0:01:12]} 30. Bxc4 {[%clk 0:00:21]}  bxc4 {[%clk 0:01:05]} 31. Qxc4 {[%clk 0:00:21]}  Qxc4 {[%clk 0:00:52]} 32. Rxc4 {[%clk 0:00:21]}  Rdb8 {[%clk 0:00:52]} 33. g3 {[%clk 0:00:20]}  Rb1 {[%clk 0:00:51]} 34. Kf1 {[%clk 0:00:20]}  Rxa3 {[%clk 0:00:49]} 35. Bxa3 {[%clk 0:00:20]}  Rxd1+ {[%clk 0:00:49]} 36. Ke2 {[%clk 0:00:21]}  Ra1 {[%clk 0:00:48]} 37. Bc5 {[%clk 0:00:21]}  Ra2+ {[%clk 0:00:46]} 38. Kf3 {[%clk 0:00:21]}  g5 {[%clk 0:00:45]} 39. Bd6 {[%clk 0:00:18]}  Kg7 {[%clk 0:00:45]} 40. g4 {[%clk 0:00:17]}  Rb2 {[%clk 0:00:40]} 41. Be5+ {[%clk 0:00:17]}  f6 {[%clk 0:00:38]} 42. Bg3 {[%clk 0:00:17]}  Rb3+ {[%clk 0:00:35]} 43. Kg2 {[%clk 0:00:17]}  Rb7 {[%clk 0:00:29]} 44. Rc6 {[%clk 0:00:16]}  Re7 {[%clk 0:00:28]} 45. h4 {[%clk 0:00:16]}  gxh4 {[%clk 0:00:23]} 46. Bxh4 {[%clk 0:00:16]}  Kg6 {[%clk 0:00:24]} 47. Bg3 {[%clk 0:00:15]}  h5 {[%clk 0:00:24]} 48. gxh5+ {[%clk 0:00:15]}  Kxh5 {[%clk 0:00:24]} 49. Kf3 {[%clk 0:00:16]}  Kg6 {[%clk 0:00:25]} 50. Rc8 {[%clk 0:00:16]}  Kf5 {[%clk 0:00:25]} 51. Rh8 {[%clk 0:00:16]}  Rb7 {[%clk 0:00:25]} 52. Rh5+ {[%clk 0:00:13]}  Kg6 {[%clk 0:00:26]} 53. Rh1 {[%clk 0:00:12]}  Rb3+ {[%clk 0:00:26]} 54. Kg2 {[%clk 0:00:11]}  Kf5 {[%clk 0:00:27]} 55. Rd1 {[%clk 0:00:11]}  Ke4 {[%clk 0:00:26]} 56. Re1+ {[%clk 0:00:11]}  Kf5 {[%clk 0:00:26]} 57. Rd1 {[%clk 0:00:12]}  Rb2 {[%clk 0:00:26]} 58. Rd3 {[%clk 0:00:11]}  Ke4 {[%clk 0:00:22]} 59. Rd1 {[%clk 0:00:11]}  Re2 {[%clk 0:00:20]} 60. Kf1 {[%clk 0:00:09]}  Rb2 {[%clk 0:00:20]} 61. Re1+ {[%clk 0:00:09]}  Kf5 {[%clk 0:00:20]} 62. Rd1 {[%clk 0:00:10]}  Ra2 {[%clk 0:00:20]} 63. Kg1 {[%clk 0:00:09]}  Ke4 {[%clk 0:00:20]} 64. Re1+ {[%clk 0:00:09]}  Kf5 {[%clk 0:00:20]} 65. Rd1 {[%clk 0:00:09]}  Nc3 {[%clk 0:00:18]} 66. Rd3 {[%clk 0:00:08]}  Ne2+ {[%clk 0:00:16]} 67. Kg2 {[%clk 0:00:09]}  Nc1 {[%clk 0:00:09]} 68. Rf3+ {[%clk 0:00:08]}  Kg6 {[%clk 0:00:09]} 69. Re3 {[%clk 0:00:08]}  Kf7 {[%clk 0:00:08]} 70. Rc3 {[%clk 0:00:07]}  Ne2 {[%clk 0:00:06]} 71. Rd3 {[%clk 0:00:06]}  Ra4 {[%clk 0:00:05]} 72. d5 {[%clk 0:00:06]}  exd5 {[%clk 0:00:05]} 73. Rxd5 {[%clk 0:00:05]}  Nd4 {[%clk 0:00:06]} 74. Rd7+ {[%clk 0:00:05]}  Kg6 {[%clk 0:00:06]} 75. Rd8 {[%clk 0:00:05]}  Nf5 {[%clk 0:00:06]} 76. Rg8+ {[%clk 0:00:05]}  Kf7 {[%clk 0:00:07]} 77. Rb8 {[%clk 0:00:06]}  Rg4 {[%clk 0:00:07]} 78. Rb7+ {[%clk 0:00:05]}  Kg6 {[%clk 0:00:07]} 79. Rb5 {[%clk 0:00:05]}  Nxg3 {[%clk 0:00:07]} 80. fxg3 {[%clk 0:00:05]}  Ra4 {[%clk 0:00:08]} 81. Rb2 {[%clk 0:00:05]}  f5 {[%clk 0:00:08]} 82. Rf2 {[%clk 0:00:05]}  Kg5 {[%clk 0:00:08]} 83. Rf3 {[%clk 0:00:05]}  Ra2+ {[%clk 0:00:07]} 84. Rf2 {[%clk 0:00:05]}  Rxf2+ {[%clk 0:00:07]} 85. Kxf2 {[%clk 0:00:06]}  f4 {[%clk 0:00:08]} 86. gxf4+ {[%clk 0:00:06]}  Kxf4 {[%clk 0:00:09]} 1/2-1/2


[Site "https://www.chess.com"]

[Event "Titled Tuesday Blitz October 31 Early 2023"]
[White "Karamsetty, Jeevan"]
[Black "Bachmann, Axel"]
[WhiteFideId "2025337"]
[BlackFideId "3700488"]
[WhiteElo "2601"]
[BlackElo "2896"]
[Result "1-0"]
[Round "2"]
[TimeControl "180+1"]
[Date "2023.10.31"]
[WhiteClock "0:00:19"]
[BlackClock "0:00:16"]
[Board "26"]

1. e4 {[%clk 0:03:00]}  Nf6 {[%clk 0:02:56]} 2. e5 {[%clk 0:03:00]}  Nd5 {[%clk 0:02:57]} 3. d4 {[%clk 0:03:01]}  d6 {[%clk 0:02:57]} 4. c4 {[%clk 0:03:01]}  Nb6 {[%clk 0:02:56]} 5. exd6 {[%clk 0:03:02]}  exd6 {[%clk 0:02:56]} 6. h3 {[%clk 0:03:00]}  Be7 {[%clk 0:02:55]} 7. Nf3 {[%clk 0:03:00]}  O-O {[%clk 0:02:55]} 8. Be2 {[%clk 0:03:00]}  Bf6 {[%clk 0:02:51]} 9. O-O {[%clk 0:02:58]}  Re8 {[%clk 0:02:46]} 10. Nc3 {[%clk 0:02:57]}  Bf5 {[%clk 0:02:19]} 11. Be3 {[%clk 0:02:54]}  Nc6 {[%clk 0:02:09]} 12. a3 {[%clk 0:02:41]}  d5 {[%clk 0:01:48]} 13. c5 {[%clk 0:02:20]}  Nc4 {[%clk 0:01:48]} 14. Bxc4 {[%clk 0:02:16]}  dxc4 {[%clk 0:01:49]} 15. d5 {[%clk 0:02:10]}  Ne5 {[%clk 0:01:40]} 16. Nxe5 {[%clk 0:02:07]}  Bxe5 {[%clk 0:01:40]} 17. Bd4 {[%clk 0:02:03]}  Bd3 {[%clk 0:01:40]} 18. Bxe5 {[%clk 0:01:55]}  Bxf1 {[%clk 0:01:10]} 19. Bxg7 {[%clk 0:01:39]}  Bxg2 {[%clk 0:00:56]} 20. Qg4 {[%clk 0:01:30]}  Bxh3 {[%clk 0:00:55]} 21. Qg3 {[%clk 0:01:24]}  Qd7 {[%clk 0:00:56]} 22. f3 {[%clk 0:01:14]}  Qf5 {[%clk 0:00:56]} 23. Kh2 {[%clk 0:01:06]}  Qg6 {[%clk 0:00:55]} 24. Qxh3 {[%clk 0:00:51]}  Qc2+ {[%clk 0:00:50]} 25. Kh1 {[%clk 0:00:48]}  Kxg7 {[%clk 0:00:51]} 26. Rg1+ {[%clk 0:00:45]}  Kf8 {[%clk 0:00:43]} 27. d6 {[%clk 0:00:42]}  Re6 {[%clk 0:00:36]} 28. Ne4 {[%clk 0:00:35]}  Rxe4 {[%clk 0:00:26]} 29. Qxh7 {[%clk 0:00:32]}  Ke8 {[%clk 0:00:21]} 30. fxe4 {[%clk 0:00:25]}  Kd7 {[%clk 0:00:21]} 31. Qxf7+ {[%clk 0:00:24]}  Kc6 {[%clk 0:00:22]} 32. Qxc7+ {[%clk 0:00:24]}  Kb5 {[%clk 0:00:21]} 33. Qxb7+ {[%clk 0:00:23]}  Ka5 {[%clk 0:00:16]} 34. Qxa8 {[%clk 0:00:19]} 1-0


[Site "https://www.chess.com"]

[Event "Titled Tuesday Blitz October 31 Early 2023"]
[White "NelsonLinda"]
[Black "Kazakouski, Valery"]
[BlackFideId "13507443"]
[WhiteElo "2599"]
[BlackElo "2873"]
[Result "0-1"]
[Round "2"]
[TimeControl "180+1"]
[Date "2023.10.31"]
[WhiteClock "0:00:12"]
[BlackClock "0:00:25"]
[Board "28"]

1. b3 {[%clk 0:02:58]}  Nf6 {[%clk 0:02:57]} 2. Bb2 {[%clk 0:02:58]}  g6 {[%clk 0:02:58]} 3. Bxf6 {[%clk 0:02:57]}  exf6 {[%clk 0:02:57]} 4. c4 {[%clk 0:02:58]}  Bg7 {[%clk 0:02:55]} 5. Nc3 {[%clk 0:02:58]}  f5 {[%clk 0:02:54]} 6. Rc1 {[%clk 0:02:57]}  O-O {[%clk 0:02:52]} 7. e3 {[%clk 0:02:57]}  d6 {[%clk 0:02:48]} 8. g3 {[%clk 0:02:49]}  c6 {[%clk 0:02:46]} 9. Bg2 {[%clk 0:02:49]}  Nd7 {[%clk 0:02:44]} 10. d4 {[%clk 0:02:48]}  Nf6 {[%clk 0:02:43]} 11. Nge2 {[%clk 0:02:48]}  Re8 {[%clk 0:02:42]} 12. Qc2 {[%clk 0:02:42]}  Qe7 {[%clk 0:02:41]} 13. O-O {[%clk 0:02:39]}  a5 {[%clk 0:02:41]} 14. Na4 {[%clk 0:02:36]}  Ra6 {[%clk 0:02:31]} 15. a3 {[%clk 0:02:25]}  Bd7 {[%clk 0:02:27]} 16. c5 {[%clk 0:02:21]}  d5 {[%clk 0:02:16]} 17. Nb6 {[%clk 0:02:21]}  Be6 {[%clk 0:01:49]} 18. b4 {[%clk 0:02:21]}  axb4 {[%clk 0:01:45]} 19. axb4 {[%clk 0:02:22]}  Nd7 {[%clk 0:01:45]} 20. Nxd7 {[%clk 0:02:04]}  Bxd7 {[%clk 0:01:46]} 21. Ra1 {[%clk 0:02:04]}  Rea8 {[%clk 0:01:46]} 22. Qb2 {[%clk 0:02:05]}  Qd8 {[%clk 0:01:45]} 23. Nc3 {[%clk 0:01:56]}  h5 {[%clk 0:01:26]} 24. h4 {[%clk 0:01:54]}  f4 {[%clk 0:01:21]} 25. Rxa6 {[%clk 0:01:41]}  Rxa6 {[%clk 0:01:21]} 26. Ra1 {[%clk 0:01:41]}  fxg3 {[%clk 0:01:14]} 27. fxg3 {[%clk 0:01:39]}  Bh6 {[%clk 0:01:14]} 28. Re1 {[%clk 0:01:22]}  Qc7 {[%clk 0:01:02]} 29. Kh2 {[%clk 0:01:21]}  Bg7 {[%clk 0:00:50]} 30. b5 {[%clk 0:01:20]}  Ra8 {[%clk 0:00:49]} 31. b6 {[%clk 0:01:07]}  Qd8 {[%clk 0:00:48]} 32. Ra1 {[%clk 0:01:07]}  Bh6 {[%clk 0:00:48]} 33. Ra3 {[%clk 0:00:59]}  Rxa3 {[%clk 0:00:45]} 34. Qxa3 {[%clk 0:01:00]}  Bxe3 {[%clk 0:00:45]} 35. Nxd5 {[%clk 0:00:54]}  Bxd4 {[%clk 0:00:45]} 36. Qb4 {[%clk 0:00:39]}  Be5 {[%clk 0:00:39]} 37. Nf4 {[%clk 0:00:40]}  Qe7 {[%clk 0:00:36]} 38. Nd3 {[%clk 0:00:37]}  Bb8 {[%clk 0:00:29]} 39. Qa3 {[%clk 0:00:32]}  Qxh4+ {[%clk 0:00:28]} 40. Kg1 {[%clk 0:00:31]}  Qxg3 {[%clk 0:00:25]} 41. Kf1 {[%clk 0:00:12]}  Bf5 {[%clk 0:00:25]} 0-1


[Site "https://www.chess.com"]

[Event "Titled Tuesday Blitz October 31 Early 2023"]
[White "Manukyan, Sargis A."]
[Black "Svane, Frederik"]
[WhiteFideId "13303970"]
[BlackFideId "12923044"]
[WhiteElo "2597"]
[BlackElo "2866"]
[Result "0-1"]
[Round "2"]
[TimeControl "180+1"]
[Date "2023.10.31"]
[WhiteClock "0:00:13"]
[BlackClock "0:00:13"]
[Board "29"]

1. d4 {[%clk 0:03:00]}  Nf6 {[%clk 0:02:57]} 2. c4 {[%clk 0:03:01]}  g6 {[%clk 0:02:57]} 3. Nc3 {[%clk 0:03:02]}  d6 {[%clk 0:02:57]} 4. Nf3 {[%clk 0:03:02]}  Bg7 {[%clk 0:02:56]} 5. Bf4 {[%clk 0:02:56]}  Nbd7 {[%clk 0:02:52]} 6. h3 {[%clk 0:02:55]}  O-O {[%clk 0:02:51]} 7. e3 {[%clk 0:02:54]}  b6 {[%clk 0:02:51]} 8. Be2 {[%clk 0:02:54]}  Bb7 {[%clk 0:02:52]} 9. O-O {[%clk 0:02:55]}  Qe8 {[%clk 0:02:52]} 10. Bh2 {[%clk 0:02:48]}  e5 {[%clk 0:02:51]} 11. dxe5 {[%clk 0:02:48]}  Nxe5 {[%clk 0:02:51]} 12. Nxe5 {[%clk 0:02:44]}  dxe5 {[%clk 0:02:52]} 13. Qc2 {[%clk 0:02:39]}  Qe7 {[%clk 0:02:50]} 14. a3 {[%clk 0:02:36]}  a5 {[%clk 0:02:47]} 15. Rfd1 {[%clk 0:02:35]}  Rfd8 {[%clk 0:02:47]} 16. Rxd8+ {[%clk 0:02:34]}  Rxd8 {[%clk 0:02:48]} 17. Rd1 {[%clk 0:02:34]}  Rxd1+ {[%clk 0:02:25]} 18. Qxd1 {[%clk 0:02:34]}  Nd7 {[%clk 0:02:08]} 19. Bf3 {[%clk 0:02:21]}  e4 {[%clk 0:02:03]} 20. Be2 {[%clk 0:02:04]}  Bxc3 {[%clk 0:02:02]} 21. bxc3 {[%clk 0:02:03]}  Nc5 {[%clk 0:02:00]} 22. Bf4 {[%clk 0:02:00]}  f6 {[%clk 0:01:57]} 23. g4 {[%clk 0:01:55]}  Kf7 {[%clk 0:01:55]} 24. h4 {[%clk 0:01:55]}  Ne6 {[%clk 0:01:50]} 25. Bg3 {[%clk 0:01:52]}  Bc6 {[%clk 0:01:50]} 26. Kg2 {[%clk 0:01:27]}  h6 {[%clk 0:01:41]} 27. h5 {[%clk 0:01:25]}  g5 {[%clk 0:01:41]} 28. Qd2 {[%clk 0:01:24]}  Qxa3 {[%clk 0:01:36]} 29. Qc2 {[%clk 0:01:15]}  Qc5 {[%clk 0:01:31]} 30. f3 {[%clk 0:00:43]}  Qxe3 {[%clk 0:01:27]} 31. Kf1 {[%clk 0:00:32]}  Nc5 {[%clk 0:00:49]} 32. Bf2 {[%clk 0:00:28]}  Qf4 {[%clk 0:00:49]} 33. Bxc5 {[%clk 0:00:26]}  bxc5 {[%clk 0:00:48]} 34. Qb1 {[%clk 0:00:23]}  Ke7 {[%clk 0:00:39]} 35. Bd1 {[%clk 0:00:22]}  exf3 {[%clk 0:00:33]} 36. Qh7+ {[%clk 0:00:22]}  Kd6 {[%clk 0:00:34]} 37. Qxh6 {[%clk 0:00:20]}  Qxg4 {[%clk 0:00:16]} 38. Qxf6+ {[%clk 0:00:20]}  Kd7 {[%clk 0:00:16]} 39. h6 {[%clk 0:00:15]}  Be4 {[%clk 0:00:04]} 40. Ke1 {[%clk 0:00:14]}  Qg3+ {[%clk 0:00:04]} 41. Kd2 {[%clk 0:00:14]}  Qf4+ {[%clk 0:00:05]} 42. Qxf4 {[%clk 0:00:14]}  gxf4 {[%clk 0:00:05]} 43. Ke1 {[%clk 0:00:12]}  Ke7 {[%clk 0:00:05]} 44. Bxf3 {[%clk 0:00:11]}  Bg6 {[%clk 0:00:05]} 45. Bc6 {[%clk 0:00:11]}  Kf6 {[%clk 0:00:06]} 46. Kf2 {[%clk 0:00:12]}  Kg5 {[%clk 0:00:06]} 47. Kf3 {[%clk 0:00:12]}  Bc2 {[%clk 0:00:06]} 48. Be4 {[%clk 0:00:11]}  Bxe4+ {[%clk 0:00:06]} 49. Kxe4 {[%clk 0:00:12]}  Kxh6 {[%clk 0:00:07]} 50. Kxf4 {[%clk 0:00:12]}  a4 {[%clk 0:00:07]} 51. Ke5 {[%clk 0:00:13]}  a3 {[%clk 0:00:08]} 52. Kd5 {[%clk 0:00:14]}  a2 {[%clk 0:00:09]} 53. Kxc5 {[%clk 0:00:15]}  a1=Q {[%clk 0:00:10]} 54. Kc6 {[%clk 0:00:16]}  Qa7 {[%clk 0:00:11]} 55. c5 {[%clk 0:00:16]}  Kg7 {[%clk 0:00:11]} 56. c4 {[%clk 0:00:17]}  Kf8 {[%clk 0:00:12]} 57. Kb5 {[%clk 0:00:15]}  Ke7 {[%clk 0:00:12]} 58. Kc6 {[%clk 0:00:16]}  Kd8 {[%clk 0:00:12]} 59. Kb5 {[%clk 0:00:15]}  Kd7 {[%clk 0:00:12]} 60. c6+ {[%clk 0:00:15]}  Kd6 {[%clk 0:00:12]} 61. c5+ {[%clk 0:00:16]}  Kd5 {[%clk 0:00:13]} 62. Kb4 {[%clk 0:00:16]}  Qxc5+ {[%clk 0:00:13]} 63. Ka4 {[%clk 0:00:13]}  Qb6 {[%clk 0:00:13]} 0-1


[Site "https://www.chess.com"]

[Event "Titled Tuesday Blitz October 31 Early 2023"]
[White "Madaminov, Mukhiddin"]
[Black "Jia, Haoxiang"]
[WhiteFideId "14210703"]
[BlackFideId "8602999"]
[WhiteElo "2846"]
[BlackElo "2591"]
[Result "1-0"]
[Round "2"]
[TimeControl "180+1"]
[Date "2023.10.31"]
[WhiteClock "0:02:28"]
[BlackClock "0:01:37"]
[Board "32"]

1. d4 {[%clk 0:03:00]}  Nf6 {[%clk 0:02:59]} 2. Nc3 {[%clk 0:03:01]}  g6 {[%clk 0:02:55]} 3. e4 {[%clk 0:03:01]}  d6 {[%clk 0:02:55]} 4. f4 {[%clk 0:03:01]}  Bg7 {[%clk 0:02:54]} 5. Bd3 {[%clk 0:03:02]}  c5 {[%clk 0:02:51]} 6. dxc5 {[%clk 0:03:02]}  dxc5 {[%clk 0:02:49]} 7. e5 {[%clk 0:03:02]}  Ng4 {[%clk 0:02:33]} 8. Bb5+ {[%clk 0:03:02]}  Nc6 {[%clk 0:02:33]} 9. Bxc6+ {[%clk 0:02:57]}  bxc6 {[%clk 0:02:33]} 10. Qxd8+ {[%clk 0:02:58]}  Kxd8 {[%clk 0:02:34]} 11. h3 {[%clk 0:02:58]}  Nh6 {[%clk 0:02:34]} 12. Be3 {[%clk 0:02:58]}  c4 {[%clk 0:02:30]} 13. Nf3 {[%clk 0:02:56]}  Nf5 {[%clk 0:02:29]} 14. Bc5 {[%clk 0:02:52]}  Kc7 {[%clk 0:02:27]} 15. g4 {[%clk 0:02:50]}  Nh6 {[%clk 0:01:59]} 16. Bxe7 {[%clk 0:02:45]}  Re8 {[%clk 0:01:59]} 17. Bd6+ {[%clk 0:02:44]}  Kb7 {[%clk 0:01:59]} 18. O-O-O {[%clk 0:02:44]}  Be6 {[%clk 0:01:54]} 19. Ng5 {[%clk 0:02:41]}  f6 {[%clk 0:01:40]} 20. Nxe6 {[%clk 0:02:29]}  Rxe6 {[%clk 0:01:39]} 21. Ne4 {[%clk 0:02:29]}  fxe5 {[%clk 0:01:37]} 22. Nc5+ {[%clk 0:02:28]} 1-0


[Site "https://www.chess.com"]

[Event "Titled Tuesday Blitz October 31 Early 2023"]
[White "Aaditya Dhingra"]
[Black "Klukin, Kirill"]
[WhiteFideId "25678191"]
[BlackFideId "24199273"]
[WhiteElo "2588"]
[BlackElo "2842"]
[Result "0-1"]
[Round "2"]
[TimeControl "180+1"]
[Date "2023.10.31"]
[WhiteClock "0:00:05"]
[BlackClock "0:00:06"]
[Board "34"]

1. e4 {[%clk 0:03:00]}  c5 {[%clk 0:02:59]} 2. Nf3 {[%clk 0:03:00]}  g6 {[%clk 0:03:00]} 3. c3 {[%clk 0:03:00]}  Bg7 {[%clk 0:03:00]} 4. d4 {[%clk 0:03:00]}  c4 {[%clk 0:03:00]} 5. Bxc4 {[%clk 0:02:59]}  d6 {[%clk 0:02:53]} 6. h4 {[%clk 0:02:48]}  h5 {[%clk 0:02:49]} 7. Be3 {[%clk 0:02:46]}  Bg4 {[%clk 0:02:48]} 8. Qb3 {[%clk 0:02:43]}  e6 {[%clk 0:01:58]} 9. Qxb7 {[%clk 0:02:43]}  Nd7 {[%clk 0:01:56]} 10. Bb5 {[%clk 0:02:35]}  Nf6 {[%clk 0:01:20]} 11. Bg5 {[%clk 0:02:11]}  Rb8 {[%clk 0:00:50]} 12. Qa6 {[%clk 0:02:04]}  O-O {[%clk 0:00:41]} 13. Nbd2 {[%clk 0:02:02]}  Qc7 {[%clk 0:00:32]} 14. O-O {[%clk 0:01:48]}  Rb6 {[%clk 0:00:32]} 15. Qa4 {[%clk 0:01:46]}  Rfb8 {[%clk 0:00:31]} 16. Bxd7 {[%clk 0:01:44]}  Nxd7 {[%clk 0:00:32]} 17. Nb3 {[%clk 0:01:15]}  Bxf3 {[%clk 0:00:31]} 18. gxf3 {[%clk 0:01:14]}  R6b7 {[%clk 0:00:29]} 19. Kg2 {[%clk 0:01:09]}  Nb6 {[%clk 0:00:29]} 20. Qa5 {[%clk 0:01:00]}  Qc6 {[%clk 0:00:28]} 21. Qa6 {[%clk 0:00:59]}  Qc4 {[%clk 0:00:18]} 22. Qxc4 {[%clk 0:00:57]}  Nxc4 {[%clk 0:00:19]} 23. Bc1 {[%clk 0:00:53]}  a5 {[%clk 0:00:19]} 24. Rd1 {[%clk 0:00:47]}  Bf6 {[%clk 0:00:18]} 25. Nd2 {[%clk 0:00:40]}  Nxb2 {[%clk 0:00:18]} 26. Bxb2 {[%clk 0:00:40]}  Rxb2 {[%clk 0:00:18]} 27. Nc4 {[%clk 0:00:39]}  Rc2 {[%clk 0:00:18]} 28. Rdc1 {[%clk 0:00:36]}  Rxc1 {[%clk 0:00:17]} 29. Rxc1 {[%clk 0:00:35]}  Bxh4 {[%clk 0:00:18]} 30. Rc2 {[%clk 0:00:31]}  a4 {[%clk 0:00:09]} 31. Nxd6 {[%clk 0:00:31]}  Be7 {[%clk 0:00:10]} 32. Nc4 {[%clk 0:00:30]}  Kf8 {[%clk 0:00:11]} 33. Kf1 {[%clk 0:00:28]}  Ke8 {[%clk 0:00:09]} 34. Ke2 {[%clk 0:00:28]}  h4 {[%clk 0:00:10]} 35. f4 {[%clk 0:00:27]}  a3 {[%clk 0:00:05]} 36. Kd3 {[%clk 0:00:26]}  Rb1 {[%clk 0:00:06]} 37. d5 {[%clk 0:00:21]}  exd5 {[%clk 0:00:04]} 38. exd5 {[%clk 0:00:22]}  h3 {[%clk 0:00:05]} 39. f3 {[%clk 0:00:18]}  Rh1 {[%clk 0:00:05]} 40. d6 {[%clk 0:00:18]}  Bf6 {[%clk 0:00:05]} 41. Re2+ {[%clk 0:00:17]}  Kd7 {[%clk 0:00:05]} 42. Ne3 {[%clk 0:00:11]}  h2 {[%clk 0:00:04]} 43. Kc4 {[%clk 0:00:11]}  Rc1 {[%clk 0:00:04]} 44. Rxh2 {[%clk 0:00:09]}  Rxc3+ {[%clk 0:00:05]} 45. Kd5 {[%clk 0:00:07]}  Rxe3 {[%clk 0:00:05]} 46. Rh7 {[%clk 0:00:07]}  Rd3+ {[%clk 0:00:05]} 47. Ke4 {[%clk 0:00:08]}  Rxd6 {[%clk 0:00:05]} 48. Ke3 {[%clk 0:00:08]}  Re6+ {[%clk 0:00:05]} 49. Kd3 {[%clk 0:00:05]}  Ke7 {[%clk 0:00:06]} 0-1


[Site "https://www.chess.com"]

[Event "Titled Tuesday Blitz October 31 Early 2023"]
[White "Nurmanova, Alua"]
[Black "Badmatsyrenov, Oleg"]
[WhiteFideId "13729390"]
[BlackFideId "24115762"]
[WhiteElo "2563"]
[BlackElo "2796"]
[Result "1-0"]
[Round "2"]
[TimeControl "180+1"]
[Date "2023.10.31"]
[WhiteClock "0:00:41"]
[BlackClock "0:00:14"]
[Board "45"]

1. e4 {[%clk 0:02:52]}  c5 {[%clk 0:03:00]} 2. Nf3 {[%clk 0:02:51]}  e6 {[%clk 0:03:00]} 3. d4 {[%clk 0:02:51]}  cxd4 {[%clk 0:03:01]} 4. Nxd4 {[%clk 0:02:52]}  a6 {[%clk 0:03:02]} 5. c4 {[%clk 0:02:46]}  Qc7 {[%clk 0:03:01]} 6. Nc3 {[%clk 0:02:45]}  Nf6 {[%clk 0:03:02]} 7. Be2 {[%clk 0:02:40]}  b6 {[%clk 0:03:01]} 8. O-O {[%clk 0:02:38]}  Bb7 {[%clk 0:03:02]} 9. Qd3 {[%clk 0:02:39]}  d6 {[%clk 0:02:59]} 10. f4 {[%clk 0:02:38]}  Nbd7 {[%clk 0:03:00]} 11. b4 {[%clk 0:02:38]}  Rc8 {[%clk 0:02:57]} 12. Bb2 {[%clk 0:02:32]}  Be7 {[%clk 0:02:56]} 13. Rac1 {[%clk 0:02:31]}  O-O {[%clk 0:02:56]} 14. g4 {[%clk 0:02:29]}  Rfd8 {[%clk 0:02:53]} 15. g5 {[%clk 0:02:28]}  Ne8 {[%clk 0:02:53]} 16. h4 {[%clk 0:02:23]}  Nc5 {[%clk 0:02:51]} 17. Qe3 {[%clk 0:02:18]}  Nd7 {[%clk 0:02:50]} 18. f5 {[%clk 0:02:15]}  exf5 {[%clk 0:02:43]} 19. Nxf5 {[%clk 0:01:56]}  Bf8 {[%clk 0:02:42]} 20. Nd5 {[%clk 0:01:54]}  Bxd5 {[%clk 0:02:43]} 21. cxd5 {[%clk 0:01:51]}  Qb7 {[%clk 0:02:43]} 22. h5 {[%clk 0:01:48]}  Ne5 {[%clk 0:02:41]} 23. Nd4 {[%clk 0:01:34]}  Qd7 {[%clk 0:02:34]} 24. Qf4 {[%clk 0:01:32]}  Rxc1 {[%clk 0:02:28]} 25. Bxc1 {[%clk 0:01:25]}  Nc7 {[%clk 0:02:21]} 26. Bb2 {[%clk 0:01:15]}  Re8 {[%clk 0:02:09]} 27. Nc6 {[%clk 0:01:08]}  Nxc6 {[%clk 0:00:53]} 28. dxc6 {[%clk 0:01:09]}  Qe6 {[%clk 0:00:54]} 29. Bg4 {[%clk 0:00:49]}  Qc4 {[%clk 0:00:54]} 30. Bd7 {[%clk 0:00:48]}  Re7 {[%clk 0:00:53]} 31. g6 {[%clk 0:00:47]}  Qxb4 {[%clk 0:00:17]} 32. gxf7+ {[%clk 0:00:45]}  Kh8 {[%clk 0:00:17]} 33. Bxg7+ {[%clk 0:00:40]}  Kxg7 {[%clk 0:00:14]} 34. Qg5+ {[%clk 0:00:40]}  Kh8 {[%clk 0:00:14]} 35. Qf6+ {[%clk 0:00:40]}  Bg7 {[%clk 0:00:14]} 36. f8=Q# {[%clk 0:00:41]} 1-0


[Site "https://www.chess.com"]

[Event "Titled Tuesday Blitz October 31 Early 2023"]
[White "Komov, Roman"]
[Black "Richter, Paul"]
[WhiteFideId "24175714"]
[BlackFideId "2046350"]
[WhiteElo "2777"]
[BlackElo "2543"]
[Result "1-0"]
[Round "2"]
[TimeControl "180+1"]
[Date "2023.10.31"]
[WhiteClock "0:01:04"]
[BlackClock "0:00:00"]
[Board "51"]

1. e4 {[%clk 0:02:55]}  c5 {[%clk 0:02:59]} 2. Nf3 {[%clk 0:02:55]}  d6 {[%clk 0:02:58]} 3. Bb5+ {[%clk 0:02:54]}  Nc6 {[%clk 0:02:57]} 4. O-O {[%clk 0:02:53]}  Bd7 {[%clk 0:02:57]} 5. Re1 {[%clk 0:02:53]}  Nf6 {[%clk 0:02:57]} 6. c3 {[%clk 0:02:53]}  a6 {[%clk 0:02:57]} 7. Bf1 {[%clk 0:02:53]}  Bg4 {[%clk 0:02:56]} 8. d4 {[%clk 0:02:54]}  Bxf3 {[%clk 0:02:56]} 9. gxf3 {[%clk 0:02:54]}  cxd4 {[%clk 0:02:55]} 10. cxd4 {[%clk 0:02:55]}  e5 {[%clk 0:02:51]} 11. d5 {[%clk 0:02:54]}  Ne7 {[%clk 0:02:51]} 12. Be3 {[%clk 0:02:50]}  Ng6 {[%clk 0:02:46]} 13. Nd2 {[%clk 0:02:49]}  Be7 {[%clk 0:02:44]} 14. Nc4 {[%clk 0:02:41]}  b5 {[%clk 0:01:57]} 15. Nd2 {[%clk 0:02:39]}  O-O {[%clk 0:01:56]} 16. a4 {[%clk 0:02:39]}  b4 {[%clk 0:01:48]} 17. Rc1 {[%clk 0:02:37]}  Nh5 {[%clk 0:01:40]} 18. Rc6 {[%clk 0:02:34]}  Ngf4 {[%clk 0:01:01]} 19. Nc4 {[%clk 0:02:31]}  f5 {[%clk 0:00:54]} 20. Kh1 {[%clk 0:02:21]}  Rf6 {[%clk 0:00:35]} 21. Nb6 {[%clk 0:02:05]}  Rb8 {[%clk 0:00:32]} 22. Bxa6 {[%clk 0:02:02]}  Bf8 {[%clk 0:00:20]} 23. Bc8 {[%clk 0:01:57]}  fxe4 {[%clk 0:00:15]} 24. fxe4 {[%clk 0:01:58]}  Rg6 {[%clk 0:00:13]} 25. Rg1 {[%clk 0:01:48]}  Qh4 {[%clk 0:00:10]} 26. Rg4 {[%clk 0:01:36]}  Qh3 {[%clk 0:00:05]} 27. Rxg6 {[%clk 0:01:35]}  Rxc8 {[%clk 0:00:05]} 28. Rg1 {[%clk 0:01:07]}  Re8 {[%clk 0:00:02]} 29. a5 {[%clk 0:01:05]}  Re7 {[%clk 0:00:00]} 30. a6 {[%clk 0:01:04]} 1-0


[Site "https://www.chess.com"]